[Event "FIDE Womens Candidates 2024"]
[Site "Toronto"]
[Date "2024.04.07"]
[Round "4.1"]
[White "Goryachkina, Aleksandra"]
[Black "Vaishali, Rameshbabu"]
[Result "1/2-1/2"]
[ECO "D33"]
[WhiteElo "2553"]
[BlackElo "2475"]
[Annotator "TA"]
[PlyCount "80"]
[EventDate "2024.04.02"]
[EventType "tourn"]
[EventCountry "CAN"]
[SourceTitle "playchess.com"]
[Source "ChessBase"]
[SourceQuality "1"]
[TimeControl "40/5400+30:1800+30"]

{[%evp 11,80,43,39,2,28,21,10,21,21,22,5,8,12,9,18,8,30,20,27,8,22,21,31,18,21,13,16,8,25,7,12,14,16,0,15,22,54,2,26,27,33,39,27,0,0,0,0,0,0,0,0,0,0,0,0,0,0,0,0,0,0,0,0,0,0,0,0,0,0,0,0]} 1. Nf3 {[%emt 0:00:09]} Nf6 {[%emt 0:00:26]} 2. c4 {[%emt 0:00:32]} c5 {[%emt 0:00:23]} 3. Nc3 {[%emt 0:00:46]} e6 {[%emt 0:00:17]} 4. g3 {[%emt 0:01:18]} d5 {[%emt 0:00:29]} 5. cxd5 {[%emt 0:00:54]} exd5 {[%emt 0:00:06]} 6. d4 {[%emt 0:00:36]} Nc6 {[%emt 0:00:10]} 7. a3 {[%emt 0:01:08]} cxd4 {[%emt 0:01:44]} 8. Nxd4 {[%emt 0:01:07]} Bc5 {[%emt 0:00:09]} 9. Be3 {[%emt 0:01:32] [#] Nxc6 is the strong threat.} Bb6 {[%emt 0:00:47]} 10. Na4 {[%emt 0:02:32]} Bxd4 {[%emt 0:01:22]} 11. Bxd4 {[%emt 0:00:14]} O-O {[%emt 0:00:21]} 12. Bg2 {[%emt 0:01:30]} Re8 {[%emt 0:00:14]} 13. Nc3 {[%emt 0:01:16][%cal Ba4c3,Bc3e2,Be2d4][%mdl 32]} Bf5 {[%emt 0:00:54]} 14. O-O {[%emt 0:01:55]} Ne4 {[%emt 0:00:31][%cal Bf6e4,Be4g5,Bg5e6][%mdl 32]} 15. e3 {[%emt 0:02:39]} Qd7 {[%emt 0:00:49]} 16. Rc1 {[%emt 0:03:52]} Rad8 {[%emt 0:01:22]} 17. Ne2 {[%emt 0:19:38]} Ng5 {[%emt 0:16:10]} (17... Bh3 {looks sharper.} 18. Nf4 Bxg2 19. Kxg2 Ng5) 18. h4 {[%emt 0:00:00]} Ne6 {[%emt 0:04:10]} 19. Qd2 {[%emt 0:00:00]} h6 {[%emt 0:15:18]} 20. b4 {[%emt 0:10:40]} Be4 {[%emt 0:15:05]} 21. Rfd1 {[%emt 0:04:54]} Nexd4 {[%emt 0:08:27]} 22. Nxd4 {[%emt 0:01:16]} Ne5 {[%emt 0:01:07]} 23. Qe2 {[%emt 0:04:38]} a6 {[%emt 0:07:02] Repels Qb5} 24. b5 {[%emt 0:08:50]} ({White should play} 24. Bxe4 $1 $14 dxe4 25. Nc6) 24... Bxg2 {[%emt 0:05:01]} 25. Kxg2 {[%emt 0:00:08]} Nc4 {[%emt 0:01:03]} 26. bxa6 {[%emt 0:03:40]} bxa6 {[%emt 0:00:03]} 27. Rb1 {[%emt 0:05:10]} Nxa3 {[%emt 0:08:44] The position is equal.} 28. Ra1 {[%emt 0:02:34]} Nb5 {[%emt 0:00:25]} 29. Nxb5 {[%emt 0:06:11]} (29. Rxa6 $2 {perishes.} Nc3 30. Qh5 Nxd1 31. Qxd1 Ra8 $19) 29... axb5 {[%emt 0:00:18]} 30. Rab1 {[%emt 0:00:23][%cal Ba1b1,Bb1b5,Bb5a5][%mdl 32]} d4 {[%emt 0:01:44]} 31. Qxb5 {[%emt 0:00:43] Active counter play!} (31. Qf3 {is interesting.} d3 32. Rb4 Qa7 33. Rxb5 Qa2 34. Rb7) 31... Qxb5 {[%emt 0:00:14]} 32. Rxb5 {[%emt 0:00:02]} dxe3 {[%emt 0:00:06]} 33. Rxd8 {[%emt 0:00:06]} Rxd8 {[%emt 0:00:05]} 34. fxe3 $11 {[%emt 0:00:38][%mdl 4096] Endgame. KR-KR} g6 {[%emt 0:00:08]} 35. Kf3 {[%emt 0:00:36]} h5 {[%emt 0:00:06]} 36. Ra5 {[%emt 0:00:12]} Kg7 {[%emt 0:00:05]} 37. Rb5 {[%emt 0:00:05]} Kf6 {[%emt 0:00:05]} 38. Ra5 {[%emt 0:00:26]} Ke6 {[%emt 0:00:05]} 39. Rb5 {[%emt 0:00:24]} Kf6 {[%emt 0:00:07]} 40. Ra5 {[%emt 0:00:00]} Ke6 {[%emt 0:00:00] Weighted Error Value: White=0.06 (flawless) /Black=0.05 (flawless) .  Mistake:       	White=1     	---        Inaccurate:     	White=1     	Black=2      OK:         	White=13    	Black=21     Best:        	White=1     	---} 1/2-1/2

[Event "FIDE Womens Candidates 2024"]
[Site "Toronto"]
[Date "2024.04.07"]
[Round "4.2"]
[White "Lagno, Kateryna"]
[Black "Tan, Zhongyi"]
[Result "1/2-1/2"]
[ECO "B92"]
[WhiteElo "2542"]
[BlackElo "2521"]
[Annotator "TA"]
[PlyCount "112"]
[EventDate "2024.04.02"]
[EventType "tourn"]
[EventCountry "CAN"]
[SourceTitle "playchess.com"]
[Source "ChessBase"]
[SourceQuality "1"]
[TimeControl "40/5400+30:1800+30"]

{[%evp 54,112,31,25,148,135,152,127,170,108,160,119,170,130,129,0,166,137,194,199,190,192,403,377,370,370,370,370,561,552,605,225,249,244,252,220,377,390,373,379,558,555,486,510,462,285,255,242,480,455,480,0,0,0,0,0,0,0,0,0,0]} 1. e4 {[%emt 0:00:03]} c5 {[%emt 0:00:07]} 2. Nf3 {[%emt 0:00:07]} d6 {[%emt 0:00:07]} 3. d4 {[%emt 0:00:22]} cxd4 {[%emt 0:00:09]} 4. Nxd4 {[%emt 0:00:06]} Nf6 {[%emt 0:00:08]} 5. Nc3 {[%emt 0:00:05]} a6 {[%emt 0:00:10]} 6. Be2 {[%emt 0:00:25]} e5 {[%emt 0:00:39]} 7. Nb3 {[%emt 0:00:15]} Be7 {[%emt 0:00:18]} 8. Be3 {[%emt 0:00:14]} Be6 {[%emt 0:04:13]} 9. O-O {[%emt 0:00:42]} O-O {[%emt 0:03:31]} 10. Re1 {[%emt 0:00:22] B92: Sicilian Najdorf: 6 Be2.} Nbd7 {[%emt 0:07:26]} 11. a4 {[%emt 0:00:23]} b6 {[%emt 0:10:05]} 12. h3 $146 {[%emt 0:09:39]} ({Predecessor:} 12. Bf1 Nc5 13. Nxc5 dxc5 14. Qxd8 Rfxd8 15. Rad1 Kf8 16. Rxd8+ Bxd8 17. a5 Bd7 18. Rd1 Bc6 19. f3 Nd7 20. Rd6 Ke7 21. Rxc6 Nb8 22. Nd5+ Kd7 23. Rxb6 {1-0 Postny,E (2570)-Jaiveer,M (2393) Titled Tuesday intern op 26th Sep Early blitz 2023 (1)}) 12... Qc7 {[%emt 0:01:38]} 13. Qd3 {[%emt 0:25:41]} Rfc8 {[%emt 0:00:32]} 14. Rec1 {[%emt 0:13:20]} Qb7 {[%emt 0:06:28]} 15. Bf3 {[%emt 0:01:51]} Rc7 {[%emt 0:01:37]} 16. Nd2 {[%emt 0:01:35]} Nc5 {[%emt 0:08:05]} 17. Qe2 {[%emt 0:00:49]} h6 {[%emt 0:04:15]} 18. b4 {[%emt 0:08:35]} Ncd7 {[%emt 0:00:50]} 19. Qd3 {[%emt 0:00:23]} Rac8 {[%emt 0:02:53]} 20. Ra3 {[%emt 0:00:28]} Bc4 {[%emt 0:16:31]} 21. Nxc4 {[%emt 0:00:26]} Rxc4 {[%emt 0:00:05]} 22. Rb3 {[%emt 0:02:24]} Qc7 {[%emt 0:05:06]} 23. Bd2 {[%emt 0:05:38]} d5 {[%emt 0:08:33]} 24. Nxd5 {[%emt 0:00:37]} Nxd5 {[%emt 0:00:04]} 25. exd5 {[%emt 0:00:04]} Nf6 {[%emt 0:02:16]} 26. Qf1 {[%emt 0:00:46]} Qd7 {[%emt 0:04:14]} 27. c3 {[%emt 0:06:34]} Qxa4 {[%emt 0:01:39]} (27... Nxd5 28. Bg4) 28. Rbb1 {[%emt 0:00:04]} Qa2 {[%emt 0:02:11]} (28... Qd7 $11 {keeps the balance.}) 29. Rd1 {[%emt 0:02:51]} R4c7 {[%emt 0:03:58]} 30. Ra1 {[%emt 0:06:58]} Qc2 {[%emt 0:00:28]} 31. Be3 {[%emt 0:03:36]} (31. Rxa6 $6 e4 32. Bg4 Rd8 $14) ({Better is} 31. Qxa6 $18 {[%cal Od2e1] Strongly threatening Be1!} Rb8 32. Be3) 31... Rd7 {[%emt 0:02:21]} ({Black should play} 31... Bd6) 32. Rdc1 {[%emt 0:03:04]} (32. Bxb6 $6 Rxc3 33. Bc5 (33. Qxa6 Bxb4 34. Be3 Kh7 $14) 33... e4 34. Bxe7 Rxe7 $16) 32... Qb2 {[%emt 0:01:07]} (32... Qb3 $16) 33. Rab1 {[%emt 0:02:38]} (33. Rxa6 $6 Rxc3 34. Rxb6 e4 35. Rb8+ Kh7 $11) 33... Qa3 {[%emt 0:01:55]} 34. Ra1 {[%emt 0:02:08]} (34. Bxb6 $6 Rxc3 35. Rd1 Bxb4 $11) 34... Qb2 $1 {[%emt 0:00:05]} 35. Qd3 {[%emt 0:00:50]} (35. Rxa6 $6 Rxc3 36. Rxb6 e4 37. Rb8+ Kh7 $11) 35... e4 {[%emt 0:02:40]} (35... Rdc7 $16) 36. Bxe4 $18 {[%emt 0:00:03]} (36. Qxa6 Rxc3 37. Rcb1 Qc2 $11) 36... Nxe4 {[%emt 0:00:05]} 37. Qxe4 {[%emt 0:00:03]} Rxc3 $2 {[%emt 0:00:10]} (37... Bg5 38. Bxg5 (38. Rxa6 Bxe3 39. Qxe3 Re7 $16) 38... hxg5) 38. Rxc3 {[%emt 0:00:39]} Qxa1+ {[%emt 0:00:30]} 39. Rc1 {[%emt 0:00:04]} Qf6 {[%emt 0:00:06]} 40. Rc6 {[%emt 0:00:00]} Qa1+ {[%emt 0:00:00]} (40... Qh4 $142 41. Qf5 Rd8 42. Bxb6 Rf8) 41. Kh2 $18 {[%emt 0:03:23]} Bf8 {[%emt 0:06:40]} 42. Rxb6 $2 {[%emt 0:04:21]} (42. Bd4 Qd1 (42... Qa2 $2 43. Rxh6 Bd6+ 44. g3 $18) 43. Rc8 (43. Bxb6 Rd6 $18) (43. Rxb6 Bd6+ 44. g3 Re7 $16)) 42... Rd8 {[%emt 0:01:57]} 43. Bf4 {[%emt 0:12:28]} Qa2 {[%emt 0:06:28]} 44. d6 {[%emt 0:02:28]} a5 $2 {[%emt 0:01:44]} (44... Qxf2 45. Rxa6 h5) 45. Ra6 $18 {[%emt 0:02:41]} Qxf2 {[%emt 0:03:26]} 46. bxa5 {[%emt 0:00:25]} g5 {[%emt 0:00:17]} (46... Re8 $142 47. Qf3 (47. Qxe8 Qxf4+ 48. Kg1 Qc1+ 49. Kh2 Qf4+ 50. Kg1 Qc1+ 51. Kf2 Qf4+ 52. Kg1 $11) 47... Qd4) 47. Bg3 $18 {[%emt 0:00:27]} Qf6 {[%emt 0:00:20]} 48. Qd5 {[%emt 0:02:20]} h5 {[%emt 0:00:13]} 49. Qf3 {[%emt 0:05:33]} ({Not} 49. d7 Rxd7 50. Qxd7 (50. Rxf6 Rxd5 51. a6 Ra5 $14) 50... Qxa6 $18) 49... Qg6 {[%emt 0:02:15]} 50. Ra8 {[%emt 0:02:53]} Rxa8 $2 {[%emt 0:00:24]} (50... g4 {was worth a try.} 51. Qd5 Rxa8 52. Qxa8 h4 53. Bxh4 (53. Bf4 $2 {leads to mate.} g3+ 54. Bxg3 hxg3+ 55. Kh1 Qb1#) 53... Kg7) 51. Qxa8 $18 {[%emt 0:00:03]} h4 {[%emt 0:00:14] [#]} 52. Be5 $2 {[%emt 0:00:26]} (52. Bf2 $1 $18 Qf5 53. Bg1) 52... Qe6 $11 {[%emt 0:00:18]} 53. Qe4 {[%emt 0:00:55]} Bxd6 {[%emt 0:02:39]} 54. Qa8+ {[%emt 0:00:04]} Kh7 {[%emt 0:00:34]} 55. Bxd6 {[%emt 0:00:35]} Qxd6+ {[%emt 0:00:06]} 56. Kh1 {[%emt 0:00:01]} Qd1+ {[%emt 0:00:34]} 1/2-1/2

[Event "FIDE Womens Candidates 2024"]
[Site "Toronto"]
[Date "2024.04.09"]
[Round "5.1"]
[White "Tan, Zhongyi"]
[Black "Salimova, Nurgyul"]
[Result "1/2-1/2"]
[ECO "B12"]
[WhiteElo "2521"]
[BlackElo "2432"]
[Annotator "TA"]
[PlyCount "116"]
[EventDate "2024.04.02"]
[EventType "tourn"]
[EventCountry "CAN"]
[SourceTitle "playchess.com"]
[Source "ChessBase"]
[SourceQuality "1"]
[TimeControl "40/5400+30:1800+30"]

{[%evp 26,116,83,83,82,75,66,60,85,50,60,40,64,60,73,41,32,40,47,45,41,45,58,52,50,47,46,41,43,38,37,35,56,14,33,0,0,-4,0,-9,0,0,0,0,0,0,0,0,7,0,0,0,0,0,0,0,0,0,0,0,0,0,0,0,0,0,59,0,0,0,0,0,0,0,0,0,0,0,0,0,0,0,0,0,0,0,0,0,0,0,0,0,0]} 1. e4 {[%emt 0:00:05]} c6 {[%emt 0:00:08]} 2. d4 {[%emt 0:00:11]} d5 {[%emt 0:00:06]} 3. e5 {[%emt 0:00:09]} c5 {[%emt 0:00:06]} 4. dxc5 {[%emt 0:04:11]} e6 {[%emt 0:00:13]} 5. Nf3 {[%emt 0:00:06]} Bxc5 {[%emt 0:02:27]} 6. Bd3 {[%emt 0:00:05] B12: Caro-Kann: Advance Variation.} Ne7 $1 {[%emt 0:01:33][%mdl 4] is more profitable than 6...Nc6 at the moment.} 7. Nbd2 {[%emt 0:01:57]} Nbc6 {[%emt 0:05:57]} 8. Nb3 {[%emt 0:03:03]} Bb6 {[%emt 0:00:49]} 9. O-O {[%emt 0:00:07]} Qc7 {[%emt 0:05:34]} 10. Bf4 $146 {[%emt 0:07:03]} ({Predecessor:} 10. Re1 Bd7 11. c3 Ng6 12. Bxg6 hxg6 13. Be3 Bxe3 14. Rxe3 Ne7 15. Nbd4 Nf5 16. Re2 {1-0 Miranda,R (2324)-Harsh,S (2298) Titled Tuesday intern op 23rd May Early blitz 2023 (5)}) 10... Nb4 {[%emt 0:09:37]} 11. a4 {[%emt 0:13:14]} a6 {[%emt 0:04:04]} 12. Qd2 {[%emt 0:12:49]} Nxd3 {[%emt 0:01:21]} 13. cxd3 {[%emt 0:00:04]} d4 {[%emt 0:11:10]} 14. a5 {[%emt 0:02:24]} Ba7 {[%emt 0:00:45]} 15. Nfxd4 {[%emt 0:00:37]} O-O {[%emt 0:10:26]} 16. Rfc1 {[%emt 0:00:37]} Qd7 {[%emt 0:01:46]} 17. Be3 {[%emt 0:00:40]} Qd5 $1 {[%emt 0:01:54]} 18. f4 {[%emt 0:02:27]} (18. Rc7 $5 Ng6 19. Nf3 $14) 18... Bd7 {[%emt 0:03:23]} 19. Rc4 {[%emt 0:01:52]} Rfd8 {[%emt 0:03:18]} 20. Rac1 {[%emt 0:06:48]} Bb5 {[%emt 0:15:19]} 21. R4c3 {[%emt 0:01:24]} Nc6 {[%emt 0:03:54]} 22. Nxc6 {[%emt 0:04:39]} Bxe3+ {[%emt 0:00:20]} 23. Qxe3 {[%emt 0:00:04]} Bxc6 {[%emt 0:00:15]} 24. Qf2 {[%emt 0:02:23]} Qb5 {[%emt 0:02:55]} 25. Qc5 {[%emt 0:08:31]} h6 {[%emt 0:04:19]} 26. Qxb5 {[%emt 0:06:50]} axb5 {[%emt 0:00:05]} 27. d4 {[%emt 0:04:22]} Bd5 {[%emt 0:00:39]} 28. Kf2 {[%emt 0:01:25]} b4 {[%emt 0:02:23]} 29. Rd3 {[%emt 0:01:59]} Rdc8 {[%emt 0:03:55]} ({Don't play} 29... Bxb3 30. Rxb3 Rxd4 31. Ke3 $14) 30. Rc5 {[%emt 0:02:35]} Rxc5 {[%emt 0:00:51]} 31. dxc5 {[%emt 0:00:04]} Bc4 {[%emt 0:00:10]} 32. Re3 {[%emt 0:00:08]} Rd8 {[%emt 0:01:07]} 33. Ke1 {[%emt 0:00:40]} Rd5 {[%emt 0:00:59]} 34. g3 {[%emt 0:00:05]} Kf8 {[%emt 0:01:16]} 35. Nd2 {[%emt 0:01:27]} Rxc5 {[%emt 0:01:18]} 36. Nxc4 {[%emt 0:00:04]} Rxc4 {[%emt 0:00:03]} 37. Rb3 {[%emt 0:00:04]} g5 {[%emt 0:02:55]} 38. Kd2 {[%emt 0:00:06]} gxf4 {[%emt 0:00:50]} 39. Kd3 {[%emt 0:00:04]} Rc5 {[%emt 0:00:39]} 40. gxf4 {[%emt 0:00:00]} Rxa5 {[%emt 0:00:00]} 41. Rxb4 {[%emt 0:00:09]} Rd5+ {[%emt 0:05:20]} 42. Rd4 {[%emt 0:02:45]} Rc5 {[%emt 0:01:09]} 43. b4 {[%emt 0:01:50]} Rc1 {[%emt 0:04:29]} 44. Rd8+ {[%emt 0:00:05]} Kg7 $1 {[%emt 0:04:51]} 45. Rb8 {[%emt 0:00:06]} Rf1 {[%emt 0:04:34]} (45... Rh1 $1 $11) 46. Ke3 {[%emt 0:01:47]} (46. Rxb7 $14 Rf3+ 47. Ke4) 46... Rh1 $11 {[%emt 0:00:42]} 47. Rxb7 {[%emt 0:00:09]} Rxh2 {[%emt 0:00:18]} 48. f5 {[%emt 0:09:34]} exf5 {[%emt 0:05:08]} 49. e6 {[%emt 0:00:20]} Rh4 {[%emt 0:02:20]} 50. Kd3 {[%emt 0:04:01]} Re4 {[%emt 0:01:06]} 51. exf7 {[%emt 0:00:04]} h5 {[%emt 0:01:10]} 52. b5 {[%emt 0:00:05]} h4 {[%emt 0:00:57]} 53. b6 {[%emt 0:00:50]} Rb4 {[%emt 0:01:51]} 54. Kc3 {[%emt 0:02:00]} Rb1 {[%emt 0:00:10]} 55. Kd4 {[%emt 0:01:32]} h3 {[%emt 0:00:35]} 56. f8=Q+ {[%emt 0:01:46]} Kxf8 {[%emt 0:00:04]} 57. Rh7 {[%emt 0:00:06]} Rxb6 {[%emt 0:00:06]} 58. Ke5 {[%emt 0:01:01]} f4 {[%emt 0:00:57]} 1/2-1/2

[Event "FIDE Womens Candidates 2024"]
[Site "Toronto"]
[Date "2024.04.09"]
[Round "5.3"]
[White "Vaishali, Rameshbabu"]
[Black "Muzychuk, Anna"]
[Result "1/2-1/2"]
[ECO "C54"]
[WhiteElo "2475"]
[BlackElo "2520"]
[Annotator "TA"]
[PlyCount "96"]
[EventDate "2024.04.02"]
[EventType "tourn"]
[EventCountry "CAN"]
[SourceTitle "playchess.com"]
[Source "ChessBase"]
[SourceQuality "1"]
[TimeControl "40/5400+30:1800+30"]

{[%evp 12,96,2,19,29,38,22,8,15,19,8,20,41,39,48,36,45,31,31,25,31,37,65,37,37,35,40,32,37,34,54,46,41,0,0,0,0,-37,-42,-69,-62,-82,-75,-81,-73,-71,-48,-43,-41,-66,-11,-36,-8,-91,-92,-98,-68,-109,-112,-160,-160,-196,-196,-196,-196,-196,-196,-196,-196,-196,-196,-252,-190,-190,-190,-190,-190,-190,-190,-190,-190,-190,-190,-190,-190,-206,-206]} 1. e4 {[%emt 0:00:15]} e5 {[%emt 0:00:08]} 2. Nf3 {[%emt 0:00:07]} Nc6 {[%emt 0:00:08]} 3. Bc4 {[%emt 0:00:06]} Bc5 {[%emt 0:00:10]} 4. d3 {[%emt 0:00:05]} Nf6 {[%emt 0:00:14]} 5. Bg5 {[%emt 0:00:19]} d6 {[%emt 0:01:22]} 6. c3 {[%emt 0:00:25]} h6 {[%emt 0:01:08]} 7. Bh4 {[%emt 0:00:06]} a5 {[%emt 0:01:46]} 8. Nbd2 {[%emt 0:00:25]} Ba7 {[%emt 0:01:48]} 9. a4 {[%emt 0:01:50]} Qe7 {[%emt 0:07:45] The position is equal.} 10. O-O {[%emt 0:01:08]} g5 {[%emt 0:11:27]} 11. Bg3 {[%emt 0:00:07]} O-O {[%emt 0:01:04]} 12. Re1 {[%emt 0:01:37]} Bg4 {[%emt 0:05:12]} 13. Nf1 {[%emt 0:16:47]} Bh5 {[%emt 0:05:49]} 14. Ne3 {[%emt 0:04:01]} Bxe3 {[%emt 0:02:55]} 15. Rxe3 {[%emt 0:08:52]} Kg7 {[%emt 0:01:28]} 16. Qb3 {[%emt 0:04:55]} Nd8 {[%emt 0:04:49]} 17. h3 {[%emt 0:17:38] White is more active.} Nd7 {[%emt 0:07:40][%cal Bf6d7,Bd7b6,Bb6c4][%mdl 32]} 18. d4 {[%emt 0:11:30]} f6 {[%emt 0:00:11]} 19. Nd2 {[%emt 0:02:23]} Nb6 {[%emt 0:06:25]} 20. Ree1 {[%emt 0:09:17]} Bf7 {[%emt 0:02:09]} 21. Bxf7 {[%emt 0:00:29]} Qxf7 {[%emt 0:01:22]} 22. Qxf7+ {[%emt 0:03:34]} Rxf7 {[%emt 0:00:40]} 23. f3 {[%emt 0:00:21]} Ne6 {[%emt 0:07:59]} 24. Nb3 {[%emt 0:05:58]} Nc4 {[%emt 0:01:50]} 25. Re2 {[%emt 0:02:47]} Ra6 {[%emt 0:05:35]} 26. d5 {[%emt 0:02:45]} Nf4 {[%emt 0:00:25]} 27. Bxf4 {[%emt 0:00:02]} gxf4 {[%emt 0:00:14]} 28. Nc1 {[%emt 0:00:51]} Kf8 {[%emt 0:11:46]} 29. Nd3 {[%emt 0:01:47]} Rg7 {[%emt 0:00:36]} 30. b3 {[%emt 0:01:56]} Nb6 {[%emt 0:00:07]} (30... Ne3 $15) 31. c4 $11 {[%emt 0:00:52]} Nd7 {[%emt 0:00:08]} 32. Rc1 {[%emt 0:00:15] [#]} (32. Rc2 $1 $11) 32... b6 $1 $17 {[%emt 0:02:21] Black continues to play with concentration.} 33. Kf1 {[%emt 0:01:41]} Ke7 {[%emt 0:01:05]} 34. g4 {[%emt 0:01:30]} fxg3 {[%emt 0:00:18]} 35. f4 {[%emt 0:00:04]} (35. Ne1 $142) 35... h5 {[%emt 0:04:06]} 36. f5 {[%emt 0:00:27]} h4 {[%emt 0:03:05]} 37. Kg2 {[%emt 0:00:05]} Rg8 {[%emt 0:00:26]} 38. Rc3 {[%emt 0:00:20]} Raa8 {[%emt 0:02:27]} 39. Ne1 {[%emt 0:00:22]} Nc5 {[%emt 0:00:31]} 40. Nd3 {[%emt 0:00:00]} Rac8 {[%emt 0:00:00]} 41. Nxc5 {[%emt 0:03:23]} (41. Ne1 $142) 41... dxc5 $19 {[%emt 0:06:14][%mdl 4096] Endgame. KRR-KRR} 42. Rd3 {[%emt 0:00:30] Black is clearly better.} Rcd8 {[%emt 0:01:40]} 43. Red2 {[%emt 0:01:51]} Rd6 {[%emt 0:00:15]} 44. Rd1 {[%emt 0:03:46]} Rgd8 {[%emt 0:00:48]} 45. Kf3 {[%emt 0:01:44]} c6 {[%emt 0:02:43]} 46. R1d2 {[%emt 0:04:09]} cxd5 {[%emt 0:01:10]} 47. exd5 {[%emt 0:00:35]} Rg8 {[%emt 0:02:42]} 48. Rg2 {[%emt 0:00:26]} Rg5 {[%emt 0:07:29] Weighted Error Value: White=0.14 (very precise) /Black=0.07 (flawless) .  Mistake:       	White=3     	Black=1      Inaccurate:     	White=5     	Black=2      OK:         	White=13    	Black=23     Best:        	White=1     	Black=1      Strong:       	---       	Black=1} 1/2-1/2

[Event "FIDE Womens Candidates 2024"]
[Site "Toronto"]
[Date "2024.04.10"]
[Round "6.2"]
[White "Tan, Zhongyi"]
[Black "Muzychuk, Anna"]
[Result "1-0"]
[ECO "D05"]
[WhiteElo "2521"]
[BlackElo "2520"]
[Annotator "TA"]
[PlyCount "73"]
[EventDate "2024.04.02"]
[EventType "tourn"]
[EventCountry "CAN"]
[SourceTitle "playchess.com"]
[Source "ChessBase"]
[SourceQuality "1"]
[TimeControl "40/5400+30:1800+30"]

{[%evp 10,73,6,0,0,0,6,8,5,18,18,-9,18,16,43,46,50,43,39,43,45,42,67,54,84,72,95,63,133,107,132,139,155,175,173,166,184,194,213,48,42,19,663,75,177,174,227,229,230,225,243,242,472,391,458,4,8,8,8,8,2233,1661,858,748,29990,29991]} 1. d4 {[%emt 0:00:04]} d5 {[%emt 0:00:05]} 2. Nf3 {[%emt 0:00:11]} Nf6 {[%emt 0:00:10]} 3. e3 {[%emt 0:00:10]} e6 {[%emt 0:05:50]} 4. Bd3 {[%emt 0:00:23]} c5 {[%emt 0:00:39]} 5. b3 {[%emt 0:00:18]} Nc6 {[%emt 0:01:55]} 6. O-O {[%emt 0:00:09]} b6 {[%emt 0:04:14]} 7. Bb2 {[%emt 0:01:32]} Bb7 {[%emt 0:00:23]} 8. Nbd2 {[%emt 0:00:26]} Rc8 {[%emt 0:01:24] The position is equal.} 9. a3 {[%emt 0:00:36]} Be7 {[%emt 0:06:33]} 10. Ne5 {[%emt 0:01:28]} cxd4 {[%emt 0:10:03]} 11. exd4 {[%emt 0:01:15]} Nxe5 {[%emt 0:00:29]} 12. dxe5 {[%emt 0:00:07]} Nd7 {[%emt 0:00:01]} 13. Qg4 {[%emt 0:02:50]} g6 {[%emt 0:07:43]} 14. b4 {[%emt 0:02:24] Dodges Nc5} a5 {[%emt 0:08:06]} 15. Nf3 {[%emt 0:01:10]} O-O {[%emt 0:03:12]} 16. Rae1 {[%emt 0:03:32]} axb4 {[%emt 0:04:01]} 17. axb4 {[%emt 0:00:05]} Ra8 {[%emt 0:00:10]} 18. h4 {[%emt 0:19:25] White is more active.} Ra4 {[%emt 0:03:26]} (18... Ba6 $14) 19. h5 $16 {[%emt 0:02:57][%cal Rh5g6]} Rxb4 {[%emt 0:01:27] [#]} 20. Nd4 $1 {[%emt 0:01:10][%cal Rh5g6]} g5 {[%emt 0:22:55]} (20... Nc5 21. hxg6) 21. Bc3 {[%emt 0:01:20][%mdl 1024] White has strong compensation.} Ra4 {[%emt 0:00:00]} 22. f4 $1 {[%emt 0:10:57] fxg5 would now be deadly.} Qc8 {[%emt 0:02:59]} 23. Bb2 {[%emt 0:05:11]} Nc5 {[%emt 0:05:53]} 24. f5 $2 {[%emt 0:06:22]} (24. fxg5 $18 Nxd3 25. cxd3) 24... exf5 $1 $14 {[%emt 0:00:59]} (24... Nxd3 $6 25. f6 (25. cxd3 h6 $11) 25... Bxf6 26. exf6 $18) 25. Bxf5 {[%emt 0:04:11]} (25. Qg3 $5) 25... Qd8 {[%emt 0:03:04][%mdl 8192]} (25... Qe8 $11) 26. h6 $2 {[%emt 0:06:08]} (26. e6 $18 {[%cal Of5h7] is the precise move to win. aiming for Bxh7+!} f6 27. Bxh7+ Kxh7 28. Qf5+ Kh8 29. Qg6) 26... Bc8 {[%emt 0:01:24]} (26... Ra2 $16) 27. e6 $1 $18 {[%emt 0:03:53]} f6 {[%emt 0:03:58] [#]} (27... fxe6 {is a better defense.} 28. Rxe6 Rb4) 28. Bxh7+ $1 {[%emt 0:06:25][%mdl 512]} Kxh7 {[%emt 0:00:06]} 29. Qf5+ {[%emt 0:00:03]} Kh8 {[%emt 0:01:11] [#] Threatens to win with ...Qe8.} 30. Nc6 $1 {[%emt 0:00:08][%csl LRd8,LRg5]} Qe8 {[%emt 0:01:11] [#]} (30... Bxe6 31. Nxd8 (31. Rxe6 Nxe6 32. Nxd8 Bc5+ 33. Kh2 Rh4+ 34. Kg3 Bd6+ 35. Kf3 Rf4+ $11) 31... Bxf5 32. Rxe7 Rf4 33. Nf7+ Kg8 34. Rxf4 gxf4) 31. Qxg5 $1 {[%emt 0:00:41]} Rg8 {[%emt 0:00:12] Prevents Qg7+.} (31... Qxc6 32. Qg7#) (31... Nxe6 $2 32. Rxe6 (32. Qxd5 $2 Bc5+ $19) 32... Rg8 33. Rxe7 $18 (33. Bxf6+ Kh7 $18)) 32. Rxf6 $2 {[%emt 0:03:04]} (32. Qxd5 $2 Bb7 33. Bxf6+ (33. Rxf6 $2 Bxf6 34. Bxf6+ Kh7 $19) 33... Bxf6 34. Rxf6 Qxc6 $19) (32. Bxf6+ $18 Kh7 33. Qf5+ (33. Nxe7 $2 Rxg5 34. Bxg5 Bxe6 $19) (33. Qxd5 Rag4 $11) 33... Qg6 34. Qxg6+ (34. Bxe7 Qxf5 35. Rxf5 Nxe6 $16) (34. Nxe7 Qxf5 35. Rxf5 Bxe6 $18) 34... Rxg6 35. Nxe7 (35. Bxe7 Bxe6 36. Bf8 Rag4 $18) 35... Nxe6 36. Bb2 (36. Nxc8 Nf4 $18)) 32... Bxf6 {[%emt 0:01:25]} (32... Rxg5 33. Rf8+ Kh7 34. Rxe8 Bxe6 35. Rh8+ (35. Nxe7 d4 $18) (35. Rxe7+ Kxh6 36. Bc1 Kh5 $18) 35... Kg6 36. Nxe7+ Kf7 37. Rh7+ (37. Rf1+ Kxe7 38. Bf6+ Kf7 $18) 37... Ke8 38. Nc6 $18 (38. Bf6 Rh5 $18)) 33. Qxf6+ {[%emt 0:05:39]} (33. Bxf6+ $2 {is the wrong capture.} Kh7 34. Bg7 Nxe6 (34... Qxc6 35. Qf5#) 35. Qf5+ Qg6 36. Qxg6+ Kxg6 $19) 33... Kh7 {[%emt 0:00:01][%cal Rc8e6] ...Bxe6! is the strong threat.} 34. Ne7 $40 {[%emt 0:00:10][%mdl 128] White is up to no good. Dancing on a razor blade.} Re4 $2 {[%emt 0:01:36][%mdl 8192]} (34... Bxe6 $11 35. Nxg8 Qxg8 36. Qe7+ Qf7 (36... Kxh6 $2 {perishes.} 37. Qf6+ Kh7 38. Re5 $18) 37. Rxe6 Qxe7 38. Rxe7+ Kxh6) 35. Rxe4 {[%emt 0:00:29]} Nxe4 {[%emt 0:00:19]} 36. Nxg8 {[%emt 0:00:27]} Qxg8 {[%emt 0:00:53]} 37. Qf7+ {[%emt 0:00:13] Weighted Error Value: White=0.48/Black=0.57.  Loses game:     	---       	Black=2      Missed win:     	White=3     	---        Mistake:       	---       	Black=4      Inaccurate:     	White=1     	Black=3      OK:         	White=8     	Black=5      Best:        	White=3     	Black=3      Strong:       	White=3     	Black=1      Brilliant:      	White=1     	---} 1-0